[Event "Early-Titled-Tuesday-Blitz-October-03-2023"]
[Site "Chess.com"]
[Date "2023.10.03"]
[Round "3"]
[White "Artemiki"]
[Black "FoxOnTheRun97"]
[Result "1/2-1/2"]
[WhiteElo "2244"]
[BlackElo "2517"]
[TimeControl "180+1"]
[EndTime "8:30:56 PDT"]
[Termination "Game drawn - insufficient material"]

1. e4 {[%clk 0:03:00.9]} 1... c6 {[%clk 0:02:59.9]} 2. d4 {[%clk 0:03:00.5]}
2... d5 {[%clk 0:03:00.8]} 3. e5 {[%clk 0:03:01.1]} 3... Bf5 {[%clk 0:02:59.9]}
4. h4 {[%clk 0:03:00.9]} 4... h5 {[%clk 0:02:59.8]} 5. Bd3 {[%clk 0:03:01.4]}
5... Bxd3 {[%clk 0:02:59.8]} 6. Qxd3 {[%clk 0:03:02.3]} 6... e6 {[%clk
0:02:56.9]} 7. Bg5 {[%clk 0:03:02.4]} 7... Qa5+ {[%clk 0:02:51.2]} 8. Nd2 {[%clk
0:03:01.7]} 8... Qa6 {[%clk 0:02:50.5]} 9. c4 {[%clk 0:03:01.6]} 9... Nd7 {[%clk
0:02:30.1]} 10. Ngf3 {[%clk 0:02:57.4]} 10... Be7 {[%clk 0:02:20.9]} 11. O-O
{[%clk 0:02:55.9]} 11... Bxg5 {[%clk 0:02:20.3]} 12. Nxg5 {[%clk 0:02:42]} 12...
Ne7 {[%clk 0:02:19.9]} 13. g3 {[%clk 0:02:36.9]} 13... Nf5 {[%clk 0:02:13.5]}
14. a4 {[%clk 0:02:28.6]} 14... Rd8 {[%clk 0:01:49.2]} 15. a5 {[%clk 0:02:23.4]}
15... dxc4 {[%clk 0:01:39.6]} 16. Qxc4 {[%clk 0:01:35.7]} 16... Qxc4 {[%clk
0:01:07.6]} 17. Nxc4 {[%clk 0:01:36.6]} 17... Ke7 {[%clk 0:01:07.8]} 18. Rfd1
{[%clk 0:01:31]} 18... Nb8 {[%clk 0:00:57.9]} 19. Ra3 {[%clk 0:01:11.8]} 19...
Rd7 {[%clk 0:00:35.4]} 20. Ne4 {[%clk 0:00:54.2]} 20... Nxd4 {[%clk 0:00:28.9]}
21. Rad3 {[%clk 0:00:38.1]} 21... Nf5 {[%clk 0:00:19.2]} 22. Ncd6 {[%clk
0:00:34.8]} 22... Rhd8 {[%clk 0:00:15.7]} 23. Nc5 {[%clk 0:00:29.7]} 23... Nxd6
{[%clk 0:00:10.4]} 24. Nxd7 {[%clk 0:00:26.7]} 24... Rxd7 {[%clk 0:00:05.5]} 25.
Rxd6 {[%clk 0:00:24.3]} 25... Rxd6 {[%clk 0:00:04.8]} 26. Rxd6 {[%clk
0:00:24.8]} 26... Nd7 {[%clk 0:00:04.5]} 27. f4 {[%clk 0:00:25]} 27... Nc5
{[%clk 0:00:04.2]} 28. Rd1 {[%clk 0:00:21.4]} 28... a6 {[%clk 0:00:04.1]} 29. b4
{[%clk 0:00:19.7]} 29... Ne4 {[%clk 0:00:03.3]} 30. Kg2 {[%clk 0:00:16.7]} 30...
g6 {[%clk 0:00:03.5]} 31. Kf3 {[%clk 0:00:16.6]} 31... Nc3 {[%clk 0:00:03.6]}
32. Rc1 {[%clk 0:00:16.9]} 32... Nd5 {[%clk 0:00:03.7]} 33. Rb1 {[%clk
0:00:15.7]} 33... Kd7 {[%clk 0:00:04]} 34. Rb2 {[%clk 0:00:15.9]} 34... Kc7
{[%clk 0:00:04.3]} 35. Ke4 {[%clk 0:00:15]} 35... Nc3+ {[%clk 0:00:04.6]} 36.
Kd4 {[%clk 0:00:14]} 36... Nd5 {[%clk 0:00:05.2]} 37. Kc5 {[%clk 0:00:13.5]}
37... Nc3 {[%clk 0:00:05.6]} 38. Kc4 {[%clk 0:00:12.2]} 38... Nd5 {[%clk
0:00:05.5]} 39. Rf2 {[%clk 0:00:11.5]} 39... Ne3+ {[%clk 0:00:05.2]} 40. Kc5
{[%clk 0:00:07.4]} 40... Nd5 {[%clk 0:00:03.8]} 41. Rf3 {[%clk 0:00:07.3]} 41...
Ne7 {[%clk 0:00:03.1]} 42. Rf1 {[%clk 0:00:06.4]} 42... Nd5 {[%clk 0:00:03.5]}
43. Rg1 {[%clk 0:00:06.4]} 43... Nc3 {[%clk 0:00:03.4]} 44. g4 {[%clk
0:00:05.4]} 44... hxg4 {[%clk 0:00:03]} 45. Rxg4 {[%clk 0:00:05.1]} 45... Ne4+
{[%clk 0:00:03]} 46. Kd4 {[%clk 0:00:04.5]} 46... Nd2 {[%clk 0:00:03]} 47. Rg2
{[%clk 0:00:04.4]} 47... Nf3+ {[%clk 0:00:02.6]} 48. Ke4 {[%clk 0:00:04]} 48...
Nxh4 {[%clk 0:00:03.5]} 49. Rh2 {[%clk 0:00:04.3]} 49... Nf5 {[%clk 0:00:04.2]}
50. Rh7 {[%clk 0:00:04.7]} 50... Ng3+ {[%clk 0:00:02.1]} 51. Kf3 {[%clk
0:00:04.2]} 51... Nf5 {[%clk 0:00:02.4]} 52. Rxf7+ {[%clk 0:00:04.8]} 52... Kc8
{[%clk 0:00:03]} 53. Rf6 {[%clk 0:00:05.3]} 53... Kd7 {[%clk 0:00:02.7]} 54. Ke4
{[%clk 0:00:04.1]} 54... Ke7 {[%clk 0:00:02.5]} 55. Rxg6 {[%clk 0:00:03.7]}
55... Kf7 {[%clk 0:00:02.8]} 56. Rg5 {[%clk 0:00:03.9]} 56... Ne7 {[%clk
0:00:02.4]} 57. Rg1 {[%clk 0:00:03.6]} 57... Nd5 {[%clk 0:00:03]} 58. Rb1 {[%clk
0:00:03.2]} 58... Ke7 {[%clk 0:00:03.4]} 59. Kd4 {[%clk 0:00:03.4]} 59... Nxf4
{[%clk 0:00:03.3]} 60. Rh1 {[%clk 0:00:03.5]} 60... Nd5 {[%clk 0:00:03]} 61.
Rh7+ {[%clk 0:00:03.4]} 61... Kd8 {[%clk 0:00:03.4]} 62. Rxb7 {[%clk 0:00:03.7]}
62... Kc8 {[%clk 0:00:04.2]} 63. Rf7 {[%clk 0:00:03.5]} 63... Nxb4 {[%clk
0:00:03.8]} 64. Kc5 {[%clk 0:00:03.6]} 64... Nd3+ {[%clk 0:00:04]} 65. Kd6
{[%clk 0:00:03.3]} 65... c5 {[%clk 0:00:03.7]} 66. Kxe6 {[%clk 0:00:03.2]} 66...
c4 {[%clk 0:00:03.9]} 67. Rf8+ {[%clk 0:00:03.9]} 67... Kc7 {[%clk 0:00:04]} 68.
Kf6 {[%clk 0:00:04.8]} 68... c3 {[%clk 0:00:03.9]} 69. Rh8 {[%clk 0:00:04.7]}
69... Nf4 {[%clk 0:00:03.5]} 70. Rh1 {[%clk 0:00:04.2]} 70... Ne2 {[%clk
0:00:02.3]} 71. e6 {[%clk 0:00:04.2]} 71... Ng3 {[%clk 0:00:01.6]} 72. Rc1
{[%clk 0:00:02.2]} 72... Ne4+ {[%clk 0:00:02.2]} 73. Kf7 {[%clk 0:00:02.3]}
73... Kd6 {[%clk 0:00:01.7]} 74. e7 {[%clk 0:00:02]} 74... Ng5+ {[%clk 0:00:02]}
75. Kf8 {[%clk 0:00:02.5]} 75... Ne6+ {[%clk 0:00:02.1]} 76. Ke8 {[%clk
0:00:03.1]} 76... Nc7+ {[%clk 0:00:01.9]} 77. Kd8 {[%clk 0:00:03.7]} 77... Ne6+
{[%clk 0:00:02.4]} 78. Kc8 {[%clk 0:00:04.4]} 78... Kxe7 {[%clk 0:00:02.5]} 79.
Rxc3 {[%clk 0:00:04.9]} 79... Kd6 {[%clk 0:00:03.4]} 80. Kb7 {[%clk 0:00:05.2]}
80... Nc5+ {[%clk 0:00:02.8]} 81. Kb6 {[%clk 0:00:05.4]} 81... Na4+ {[%clk
0:00:02.6]} 82. Kxa6 {[%clk 0:00:06]} 82... Nxc3 {[%clk 0:00:03.2]} 83. Kb7
{[%clk 0:00:06.7]} 83... Nb5 {[%clk 0:00:03.2]} 84. a6 {[%clk 0:00:07.4]} 84...
Kc5 {[%clk 0:00:03.6]} 85. a7 {[%clk 0:00:05.5]} 85... Nxa7 {[%clk 0:00:03.9]}
1/2-1/2

[Event "Early-Titled-Tuesday-Blitz-October-03-2023"]
[Site "Chess.com"]
[Date "2023.10.03"]
[Round "4"]
[White "sergoy"]
[Black "Freefresh"]
[Result "1-0"]
[WhiteElo "3032"]
[BlackElo "2792"]
[TimeControl "180+1"]
[EndTime "8:34:19 PDT"]
[Termination "sergoy won by resignation"]

1. d4 {[%clk 0:03:00.9]} 1... Nf6 {[%clk 0:02:59.8]} 2. c4 {[%clk 0:03:01.1]}
2... e6 {[%clk 0:03:00.7]} 3. Nf3 {[%clk 0:03:01.6]} 3... Bb4+ {[%clk
0:03:00.3]} 4. Nbd2 {[%clk 0:03:01.5]} 4... d5 {[%clk 0:02:55.5]} 5. Qa4+ {[%clk
0:03:00.7]} 5... Nc6 {[%clk 0:02:55.3]} 6. e3 {[%clk 0:03:01.5]} 6... O-O {[%clk
0:02:54]} 7. a3 {[%clk 0:03:02.1]} 7... Bd6 {[%clk 0:02:47.5]} 8. b4 {[%clk
0:03:02.4]} 8... dxc4 {[%clk 0:02:27.8]} 9. Nxc4 {[%clk 0:03:00.8]} 9... a6
{[%clk 0:02:28.2]} 10. Qc2 {[%clk 0:02:59.8]} 10... Re8 {[%clk 0:02:23.1]} 11.
Bb2 {[%clk 0:02:59.7]} 11... Bf8 {[%clk 0:02:12.2]} 12. Bd3 {[%clk 0:02:59.4]}
12... b5 {[%clk 0:02:06.7]} 13. Nce5 {[%clk 0:02:59.4]} 13... Ne7 {[%clk
0:02:00.4]} 14. Ng5 {[%clk 0:02:59.7]} 14... h6 {[%clk 0:01:53]} 15. Bh7+ {[%clk
0:02:58.3]} 1-0

[Event "Early-Titled-Tuesday-Blitz-October-03-2023"]
[Site "Chess.com"]
[Date "2023.10.03"]
[Round "4"]
[White "vladislavkovalev"]
[Black "lefonghua"]
[Result "1-0"]
[WhiteElo "2858"]
[BlackElo "2584"]
[TimeControl "180+1"]
[EndTime "8:34:42 PDT"]
[Termination "vladislavkovalev won by resignation"]

1. e4 {[%clk 0:02:58.4]} 1... c5 {[%clk 0:02:58.4]} 2. Nf3 {[%clk 0:02:58.3]}
2... g6 {[%clk 0:02:57.9]} 3. c3 {[%clk 0:02:57]} 3... Nc6 {[%clk 0:02:57.7]} 4.
d4 {[%clk 0:02:57.5]} 4... d5 {[%clk 0:02:57.6]} 5. exd5 {[%clk 0:02:56.5]} 5...
Qxd5 {[%clk 0:02:56.3]} 6. dxc5 {[%clk 0:02:54.7]} 6... Qxc5 {[%clk 0:02:45.9]}
7. Be3 {[%clk 0:02:54.8]} 7... Qa5 {[%clk 0:02:45.6]} 8. Na3 {[%clk 0:02:45.9]}
8... Bg4 {[%clk 0:01:54.8]} 9. Qb3 {[%clk 0:02:44.5]} 9... Qc7 {[%clk
0:01:42.1]} 10. Nb5 {[%clk 0:02:40.6]} 10... Qc8 {[%clk 0:01:41.6]} 11. Bf4
{[%clk 0:02:33.6]} 1-0

[Event "Early-Titled-Tuesday-Blitz-October-03-2023"]
[Site "Chess.com"]
[Date "2023.10.03"]
[Round "4"]
[White "tylityli"]
[Black "CarlosjPineror"]
[Result "1/2-1/2"]
[WhiteElo "2340"]
[BlackElo "2499"]
[TimeControl "180+1"]
[EndTime "8:34:58 PDT"]
[Termination "Game drawn by repetition"]

1. d4 {[%clk 0:03:00.5]} 1... Nf6 {[%clk 0:02:58.7]} 2. c4 {[%clk 0:02:59.7]}
2... g6 {[%clk 0:02:57.6]} 3. Nc3 {[%clk 0:02:59.6]} 3... Bg7 {[%clk 0:02:57.8]}
4. e4 {[%clk 0:02:59.9]} 4... O-O {[%clk 0:02:57.5]} 5. Nge2 {[%clk 0:02:59.5]}
5... c5 {[%clk 0:02:57.6]} 6. d5 {[%clk 0:02:59.6]} 6... d6 {[%clk 0:02:56.6]}
7. Ng3 {[%clk 0:02:59.6]} 7... e6 {[%clk 0:02:56.7]} 8. Be2 {[%clk 0:02:59.7]}
8... exd5 {[%clk 0:02:56.5]} 9. cxd5 {[%clk 0:03:00.6]} 9... Na6 {[%clk
0:02:55.7]} 10. O-O {[%clk 0:03:00.2]} 10... Re8 {[%clk 0:02:55.4]} 11. a3
{[%clk 0:02:57.4]} 11... Nc7 {[%clk 0:02:50.3]} 12. a4 {[%clk 0:02:56.6]} 12...
Na6 {[%clk 0:02:50]} 13. Bg5 {[%clk 0:02:56.2]} 13... Nb4 {[%clk 0:02:49.9]} 14.
Qd2 {[%clk 0:02:46.2]} 14... a5 {[%clk 0:02:47.2]} 15. Bh6 {[%clk 0:02:39.1]}
15... Bg4 {[%clk 0:02:44.6]} 16. Bxg7 {[%clk 0:02:36.5]} 16... Kxg7 {[%clk
0:02:44.4]} 17. f3 {[%clk 0:02:27.2]} 17... Bd7 {[%clk 0:02:44]} 18. Bb5 {[%clk
0:02:20.7]} 18... h6 {[%clk 0:02:40.1]} 19. Rae1 {[%clk 0:02:16.3]} 19... Bxb5
{[%clk 0:02:36.8]} 20. Nxb5 {[%clk 0:02:09]} 20... Qd7 {[%clk 0:02:36.9]} 21.
Qc3 {[%clk 0:02:08.5]} 21... Na2 {[%clk 0:02:30.3]} 22. Qb3 {[%clk 0:02:06.1]}
22... Nb4 {[%clk 0:02:30.3]} 23. Qc3 {[%clk 0:02:06.1]} 23... Na2 {[%clk
0:02:30.1]} 24. Qb3 {[%clk 0:02:06]} 24... Nb4 {[%clk 0:02:30.5]} 25. Qc3 {[%clk
0:02:06.2]} 1/2-1/2

[Event "Early-Titled-Tuesday-Blitz-October-03-2023"]
[Site "Chess.com"]
[Date "2023.10.03"]
[Round "4"]
[White "dodoucb"]
[Black "dadice10"]
[Result "1-0"]
[WhiteElo "2444"]
[BlackElo "2163"]
[TimeControl "180+1"]
[EndTime "8:35:03 PDT"]
[Termination "dodoucb won by resignation"]

1. d4 {[%clk 0:03:00.2]} 1... d5 {[%clk 0:02:59.4]} 2. c4 {[%clk 0:03:00.5]}
2... dxc4 {[%clk 0:03:00.3]} 3. Nf3 {[%clk 0:03:00.4]} 3... Nf6 {[%clk
0:02:58.2]} 4. Nc3 {[%clk 0:03:00.3]} 4... c6 {[%clk 0:02:56.2]} 5. a4 {[%clk
0:02:58.2]} 5... g6 {[%clk 0:02:54]} 6. e4 {[%clk 0:02:56.1]} 6... Bg7 {[%clk
0:02:53.9]} 7. Bxc4 {[%clk 0:02:55.7]} 7... O-O {[%clk 0:02:54]} 8. O-O {[%clk
0:02:56]} 8... Bg4 {[%clk 0:02:52.3]} 9. Be3 {[%clk 0:02:55]} 9... Nbd7 {[%clk
0:02:42.9]} 10. h3 {[%clk 0:02:54.1]} 10... Bxf3 {[%clk 0:02:41.2]} 11. Qxf3
{[%clk 0:02:55]} 11... e5 {[%clk 0:02:39.5]} 12. Rad1 {[%clk 0:02:52]} 12... Qe7
{[%clk 0:02:37.6]} 13. d5 {[%clk 0:02:04.1]} 13... Nb6 {[%clk 0:02:35.4]} 14. d6
{[%clk 0:02:02.5]} 14... Qd7 {[%clk 0:02:33.7]} 15. Bb3 {[%clk 0:01:59.6]} 15...
Rad8 {[%clk 0:02:29.1]} 16. Bg5 {[%clk 0:01:57.4]} 1-0

[Event "Early-Titled-Tuesday-Blitz-October-03-2023"]
[Site "Chess.com"]
[Date "2023.10.03"]
[Round "4"]
[White "ezkybel"]
[Black "InitiatingASC"]
[Result "0-1"]
[WhiteElo "2456"]
[BlackElo "2346"]
[TimeControl "180+1"]
[EndTime "8:35:09 PDT"]
[Termination "InitiatingASC won by resignation"]

1. e4 {[%clk 0:03:00.9]} 1... c5 {[%clk 0:02:58.9]} 2. Nf3 {[%clk 0:03:00.9]}
2... Nc6 {[%clk 0:02:59]} 3. d4 {[%clk 0:03:00.7]} 3... cxd4 {[%clk 0:02:59.9]}
4. Nxd4 {[%clk 0:03:01.6]} 4... Nf6 {[%clk 0:03:00.2]} 5. Nc3 {[%clk 0:03:01.6]}
5... e5 {[%clk 0:02:59.9]} 6. Ndb5 {[%clk 0:03:01.3]} 6... h6 {[%clk 0:02:57.8]}
7. Nd5 {[%clk 0:02:59.8]} 7... Nxd5 {[%clk 0:02:55]} 8. exd5 {[%clk 0:03:00.7]}
8... a6 {[%clk 0:02:55.4]} 9. Nc3 {[%clk 0:02:57.6]} 9... Nd4 {[%clk 0:02:54.9]}
10. Be3 {[%clk 0:02:54]} 10... Nf5 {[%clk 0:02:54.6]} 11. Bd3 {[%clk 0:02:50.9]}
11... Nxe3 {[%clk 0:02:54.5]} 12. fxe3 {[%clk 0:02:51.8]} 12... d6 {[%clk
0:02:55.1]} 13. Qf3 {[%clk 0:02:50.4]} 13... Qh4+ {[%clk 0:02:54.1]} 14. g3
{[%clk 0:02:50]} 14... Qg4 {[%clk 0:02:50.4]} 15. Qf2 {[%clk 0:02:46.5]} 15...
Be7 {[%clk 0:02:45.4]} 16. Be2 {[%clk 0:02:41.8]} 16... Qb4 {[%clk 0:02:42.3]}
17. O-O-O {[%clk 0:02:39.4]} 17... O-O {[%clk 0:02:42.4]} 18. a3 {[%clk
0:02:34.5]} 18... Qc5 {[%clk 0:02:37.2]} 19. Ne4 {[%clk 0:02:27.2]} 19... Qb6
{[%clk 0:02:33.3]} 20. g4 {[%clk 0:02:20.5]} 20... f5 {[%clk 0:02:25.8]} 21.
gxf5 {[%clk 0:02:20.2]} 21... Bxf5 {[%clk 0:02:26.2]} 22. Qg2 {[%clk 0:02:17.3]}
22... Qxe3+ {[%clk 0:02:22.6]} 23. Nd2 {[%clk 0:02:16.6]} 23... Rac8 {[%clk
0:02:14.8]} 0-1

[Event "Early-Titled-Tuesday-Blitz-October-03-2023"]
[Site "Chess.com"]
[Date "2023.10.03"]
[Round "4"]
[White "BlueWizzard"]
[Black "Brave_spirit12"]
[Result "1-0"]
[WhiteElo "2961"]
[BlackElo "2758"]
[TimeControl "180+1"]
[EndTime "8:35:11 PDT"]
[Termination "BlueWizzard won by resignation"]

1. d4 {[%clk 0:03:00.1]} 1... Nf6 {[%clk 0:02:59.8]} 2. Nc3 {[%clk 0:03:00.8]}
2... e6 {[%clk 0:02:59.9]} 3. Bg5 {[%clk 0:02:59.5]} 3... d5 {[%clk 0:02:59.6]}
4. Nf3 {[%clk 0:02:58.6]} 4... Be7 {[%clk 0:02:58.5]} 5. Bxf6 {[%clk 0:02:58.7]}
5... Bxf6 {[%clk 0:02:59.4]} 6. e4 {[%clk 0:02:59.5]} 6... dxe4 {[%clk
0:02:56.8]} 7. Nxe4 {[%clk 0:03:00.4]} 7... O-O {[%clk 0:02:57.4]} 8. Qd3 {[%clk
0:03:00.4]} 8... b6 {[%clk 0:02:52.6]} 9. Nxf6+ {[%clk 0:02:56]} 9... Qxf6
{[%clk 0:02:53.5]} 10. Qe4 {[%clk 0:02:56.5]} 10... c6 {[%clk 0:02:49.5]} 11.
Bd3 {[%clk 0:02:56.7]} 11... g6 {[%clk 0:02:49.5]} 12. h4 {[%clk 0:02:54.9]}
12... Ba6 {[%clk 0:02:38.8]} 13. O-O-O {[%clk 0:02:52.4]} 13... Bxd3 {[%clk
0:02:35.8]} 14. Rxd3 {[%clk 0:02:53.3]} 14... Na6 {[%clk 0:02:34.2]} 15. Ne5
{[%clk 0:02:42.3]} 15... Qxf2 {[%clk 0:02:20.7]} 16. Ng4 {[%clk 0:02:30.6]}
16... Nc5 {[%clk 0:02:07.2]} 17. dxc5 {[%clk 0:02:06.3]} 17... Qxc5 {[%clk
0:02:08.1]} 18. Nf6+ {[%clk 0:02:02]} 18... Kg7 {[%clk 0:02:07.5]} 19. Nd7
{[%clk 0:02:02]} 1-0

[Event "Early-Titled-Tuesday-Blitz-October-03-2023"]
[Site "Chess.com"]
[Date "2023.10.03"]
[Round "4"]
[White "bazar-wokzal"]
[Black "Roedor"]
[Result "1-0"]
[WhiteElo "2632"]
[BlackElo "2391"]
[TimeControl "180+1"]
[EndTime "8:35:16 PDT"]
[Termination "bazar-wokzal won by resignation"]

1. e4 {[%clk 0:03:00.9]} 1... e5 {[%clk 0:02:51.2]} 2. Bc4 {[%clk 0:03:00.2]}
2... Nc6 {[%clk 0:02:46.1]} 3. f4 {[%clk 0:02:59.9]} 3... Nf6 {[%clk 0:02:41]}
4. Nc3 {[%clk 0:02:59]} 4... Nxe4 {[%clk 0:02:40.3]} 5. Nf3 {[%clk 0:02:56.6]}
5... Nd6 {[%clk 0:02:37.4]} 6. Bb3 {[%clk 0:02:55]} 6... exf4 {[%clk 0:02:37.5]}
7. O-O {[%clk 0:02:51.9]} 7... Be7 {[%clk 0:02:35.6]} 8. d4 {[%clk 0:02:51.2]}
8... O-O {[%clk 0:02:31.6]} 9. Bxf4 {[%clk 0:02:50.7]} 9... Bf6 {[%clk
0:02:29.8]} 10. Nd5 {[%clk 0:02:36.8]} 10... Ne8 {[%clk 0:02:27.9]} 11. c3
{[%clk 0:02:33.6]} 11... d6 {[%clk 0:02:27]} 12. Qd2 {[%clk 0:02:24.8]} 12...
Ne7 {[%clk 0:02:26]} 13. Nxf6+ {[%clk 0:02:20.1]} 13... Nxf6 {[%clk 0:02:26.9]}
14. Bg5 {[%clk 0:02:16.1]} 14... Ng6 {[%clk 0:02:26.2]} 15. Rae1 {[%clk
0:02:13.2]} 15... h6 {[%clk 0:02:22.8]} 16. Bxh6 {[%clk 0:02:09.3]} 16... gxh6
{[%clk 0:02:23.7]} 17. Qxh6 {[%clk 0:02:08.9]} 17... d5 {[%clk 0:02:17.8]} 18.
Ng5 {[%clk 0:02:07.9]} 1-0

[Event "Early-Titled-Tuesday-Blitz-October-03-2023"]
[Site "Chess.com"]
[Date "2023.10.03"]
[Round "4"]
[White "jk13"]
[Black "wild3000"]
[Result "1-0"]
[WhiteElo "2624"]
[BlackElo "2410"]
[TimeControl "180+1"]
[EndTime "8:35:39 PDT"]
[Termination "jk13 won by resignation"]

1. e4 {[%clk 0:02:58.1]} 1... c5 {[%clk 0:03:00.1]} 2. c3 {[%clk 0:02:57.3]}
2... e6 {[%clk 0:02:59.5]} 3. d4 {[%clk 0:02:57.2]} 3... d5 {[%clk 0:02:59.2]}
4. exd5 {[%clk 0:02:58.1]} 4... Qxd5 {[%clk 0:02:57.7]} 5. Nf3 {[%clk 0:02:59]}
5... Nf6 {[%clk 0:02:57.6]} 6. Na3 {[%clk 0:02:59.3]} 6... a6 {[%clk 0:02:57.7]}
7. Be3 {[%clk 0:02:58.4]} 7... cxd4 {[%clk 0:02:55.6]} 8. Nxd4 {[%clk 0:02:58]}
8... Bxa3 {[%clk 0:02:54.1]} 9. Qa4+ {[%clk 0:02:57.4]} 9... Bd7 {[%clk
0:02:48.2]} 10. Qxa3 {[%clk 0:02:57.6]} 10... e5 {[%clk 0:02:31.2]} 11. Nf3
{[%clk 0:02:48.8]} 11... Nc6 {[%clk 0:02:30.9]} 12. Rd1 {[%clk 0:02:46.3]} 12...
Qe6 {[%clk 0:02:08.6]} 13. Ng5 {[%clk 0:02:33.3]} 13... Qf5 {[%clk 0:01:59.1]}
14. Bc4 {[%clk 0:02:28.8]} 14... Ng4 {[%clk 0:01:49.5]} 15. Bxf7+ {[%clk
0:02:22.3]} 15... Kd8 {[%clk 0:01:46.4]} 16. Be6 {[%clk 0:02:21.4]} 16... Nxe3
{[%clk 0:01:35.5]} 17. Rxd7+ {[%clk 0:02:14.1]} 17... Ke8 {[%clk 0:01:30.2]} 18.
Bxf5 {[%clk 0:02:09]} 18... Nxf5 {[%clk 0:01:29.5]} 19. Rxb7 {[%clk 0:02:07.5]}
1-0

[Event "Early-Titled-Tuesday-Blitz-October-03-2023"]
[Site "Chess.com"]
[Date "2023.10.03"]
[Round "4"]
[White "wannabe2700"]
[Black "JimDiGrease"]
[Result "0-1"]
[WhiteElo "2681"]
[BlackElo "2916"]
[TimeControl "180+1"]
[EndTime "8:36:23 PDT"]
[Termination "JimDiGrease won by resignation"]

1. b3 {[%clk 0:03:00.9]} 1... d5 {[%clk 0:02:59.7]} 2. Bb2 {[%clk 0:03:01]} 2...
Nf6 {[%clk 0:03:00.3]} 3. Nf3 {[%clk 0:02:58.9]} 3... c5 {[%clk 0:03:00]} 4. g3
{[%clk 0:02:51.8]} 4... e6 {[%clk 0:02:57.4]} 5. Bg2 {[%clk 0:02:51.2]} 5... Be7
{[%clk 0:02:58]} 6. O-O {[%clk 0:02:51.3]} 6... O-O {[%clk 0:02:58.6]} 7. d4
{[%clk 0:02:45.1]} 7... cxd4 {[%clk 0:02:59.5]} 8. Nxd4 {[%clk 0:02:44.6]} 8...
e5 {[%clk 0:03:00.1]} 9. Nf3 {[%clk 0:02:44]} 9... e4 {[%clk 0:03:00.7]} 10. Nd4
{[%clk 0:02:43.8]} 10... Nc6 {[%clk 0:03:00.8]} 11. c4 {[%clk 0:02:37.7]} 11...
Nxd4 {[%clk 0:03:00.4]} 12. Qxd4 {[%clk 0:02:35.5]} 12... dxc4 {[%clk
0:02:55.7]} 13. Qxc4 {[%clk 0:02:35.3]} 13... Be6 {[%clk 0:02:48.4]} 14. Qb5
{[%clk 0:02:35.1]} 14... a6 {[%clk 0:02:36.6]} 15. Qg5 {[%clk 0:02:24.5]} 15...
h6 {[%clk 0:02:24.3]} 16. Qf4 {[%clk 0:02:22.5]} 16... Rc8 {[%clk 0:02:14.6]}
17. Nc3 {[%clk 0:02:21.8]} 17... Bd6 {[%clk 0:02:13.9]} 18. Qh4 {[%clk
0:01:47.7]} 18... Be5 {[%clk 0:01:59.9]} 19. Rfd1 {[%clk 0:01:38.9]} 19... Qa5
{[%clk 0:01:44.5]} 20. Rac1 {[%clk 0:01:32.1]} 20... Bxc3 {[%clk 0:01:38.7]} 0-1

[Event "Early-Titled-Tuesday-Blitz-October-03-2023"]
[Site "Chess.com"]
[Date "2023.10.03"]
[Round "4"]
[White "milovichalex"]
[Black "MidnightFox"]
[Result "1-0"]
[WhiteElo "2316"]
[BlackElo "2465"]
[TimeControl "180+1"]
[EndTime "8:36:35 PDT"]
[Termination "milovichalex won by resignation"]

1. e4 {[%clk 0:03:00.9]} 1... c5 {[%clk 0:02:59.2]} 2. Nf3 {[%clk 0:03:00.8]}
2... d6 {[%clk 0:02:59.3]} 3. d4 {[%clk 0:03:01.1]} 3... cxd4 {[%clk 0:02:59.3]}
4. Nxd4 {[%clk 0:03:02]} 4... Nf6 {[%clk 0:02:59.8]} 5. Nc3 {[%clk 0:03:02.4]}
5... a6 {[%clk 0:02:58.9]} 6. h3 {[%clk 0:03:02.7]} 6... e6 {[%clk 0:02:55.1]}
7. g4 {[%clk 0:03:02.5]} 7... h6 {[%clk 0:02:55.7]} 8. Rg1 {[%clk 0:03:02]} 8...
Bd7 {[%clk 0:02:55.4]} 9. h4 {[%clk 0:03:02.4]} 9... Nc6 {[%clk 0:02:55.3]} 10.
g5 {[%clk 0:03:02.5]} 10... hxg5 {[%clk 0:02:53.9]} 11. hxg5 {[%clk 0:03:02.6]}
11... Nh5 {[%clk 0:02:53.2]} 12. g6 {[%clk 0:03:02.6]} 12... Qf6 {[%clk
0:02:43.7]} 13. gxf7+ {[%clk 0:03:02.2]} 13... Qxf7 {[%clk 0:02:38.6]} 14. Be3
{[%clk 0:02:50.6]} 14... O-O-O {[%clk 0:02:29.7]} 15. Qd2 {[%clk 0:02:29.3]}
15... Kb8 {[%clk 0:02:23.8]} 16. O-O-O {[%clk 0:02:24.3]} 16... Rc8 {[%clk
0:02:23.2]} 17. Nxc6+ {[%clk 0:02:20.5]} 17... Bxc6 {[%clk 0:02:21.9]} 18. Qd4
{[%clk 0:02:20.4]} 18... Be7 {[%clk 0:02:05.9]} 19. Bxa6 {[%clk 0:02:13.8]}
19... Bf6 {[%clk 0:01:50.3]} 20. Qa7+ {[%clk 0:01:54.8]} 20... Kc7 {[%clk
0:01:49.4]} 21. Nb5+ {[%clk 0:01:38]} 21... Kd8 {[%clk 0:01:35.9]} 22. Nxd6
{[%clk 0:01:31.8]} 22... Qd7 {[%clk 0:01:28.1]} 23. Nxb7+ {[%clk 0:01:26.3]} 1-0

[Event "Early-Titled-Tuesday-Blitz-October-03-2023"]
[Site "Chess.com"]
[Date "2023.10.03"]
[Round "4"]
[White "stratacticos"]
[Black "Good_Knight_Kiss"]
[Result "0-1"]
[WhiteElo "1758"]
[BlackElo "2411"]
[TimeControl "180+1"]
[EndTime "8:36:55 PDT"]
[Termination "Good_Knight_Kiss won by resignation"]

1. e4 {[%clk 0:03:00.9]} 1... c5 {[%clk 0:02:47]} 2. b4 {[%clk 0:02:58.1]} 2...
cxb4 {[%clk 0:02:46.3]} 3. a3 {[%clk 0:02:57.9]} 3... d5 {[%clk 0:02:44.3]} 4.
exd5 {[%clk 0:02:55.2]} 4... Qxd5 {[%clk 0:02:39.7]} 5. Nf3 {[%clk 0:02:56.1]}
5... e5 {[%clk 0:02:38.6]} 6. c4 {[%clk 0:02:53.4]} 6... Qe6 {[%clk 0:02:32.9]}
7. axb4 {[%clk 0:02:43.9]} 7... Bxb4 {[%clk 0:02:30.6]} 8. Be2 {[%clk
0:02:39.3]} 8... Nf6 {[%clk 0:02:24.7]} 9. O-O {[%clk 0:02:30.7]} 9... Nc6
{[%clk 0:02:24.7]} 10. d4 {[%clk 0:02:09.1]} 10... exd4 {[%clk 0:02:20.5]} 11.
Bd3 {[%clk 0:01:40.2]} 11... O-O {[%clk 0:02:15]} 12. Bd2 {[%clk 0:01:36.2]}
12... Qg4 {[%clk 0:01:48.7]} 13. h3 {[%clk 0:01:32.3]} 13... Qh5 {[%clk
0:01:45.3]} 14. Bxb4 {[%clk 0:01:10.4]} 14... Nxb4 {[%clk 0:01:42.6]} 15. Be4
{[%clk 0:01:09.9]} 15... Nxe4 {[%clk 0:01:36.5]} 16. Qxd4 {[%clk 0:01:09.6]}
16... Nf6 {[%clk 0:01:28.5]} 17. Nc3 {[%clk 0:00:54.2]} 17... Nc2 {[%clk
0:01:27.9]} 0-1